[Event "3rd Sunway Formentera-A 2024"]
[Site "Formentera"]
[Date "2024.04.10"]
[Round "2.4"]
[White "Sosa, Tomas"]
[Black "Adarsh Tripathi"]
[Result "1/2-1/2"]
[ECO "B40"]
[WhiteElo "2562"]
[BlackElo "2304"]
[Annotator "TA"]
[PlyCount "175"]
[EventDate "2024.04.03"]
[EventType "swiss"]
[EventCountry "ESP"]
[SourceTitle "playchess.com"]
[Source "ChessBase"]
[SourceQuality "1"]
[TimeControl "40/5400+30:1800+30"]

{[%evp 9,175,2,8,0,0,4,-7,0,5,6,27,0,0,8,42,27,42,16,75,70,79,52,67,54,60,62,59,54,68,80,82,77,110,85,81,73,110,106,100,80,98,89,92,93,102,102,109,29,22,20,28,24,94,104,105,74,66,70,88,83,90,78,78,83,93,97,100,76,75,85,97,97,112,95,202,95,228,242,211,167,213,206,176,213,181,45,43,43,43,43,54,54,47,35,71,71,71,71,71,71,71,71,71,71,133,133,301,71,71,0,71,71,71,71,103,96,96,96,96,16,96,96,96,96,96,8,16,0,96,0,17,0,0,0,0,0,0,-103,-8,-755,-721,-1402,0,0,0,-247,-240,-239,-136,-136,-136,-135,0,0,0,0,0,0,0,0,0,-8,0,0,0,0,0,0]} 1. e4 {[%emt 0:00:06]} c5 {[%emt 0:00:03]} 2. Nf3 {[%emt 0:00:14]} e6 {[%emt 0:00:04]} 3. c3 {[%emt 0:01:18]} d5 {[%emt 0:00:06]} 4. e5 {[%emt 0:01:01]} d4 {[%emt 0:03:18]} 5. Na3 {[%emt 0:01:24]} Nc6 {[%emt 0:03:49]} 6. Bb5 {[%emt 0:00:28]} Bd7 {[%emt 0:00:14]} 7. O-O {[%emt 0:00:17]} a6 {[%emt 0:00:20]} 8. Bd3 {[%emt 0:00:14]} Nge7 {[%emt 0:00:11]} 9. Re1 {[%emt 0:08:01]} Ng6 {[%emt 0:03:18]} 10. g3 {[%emt 0:00:54]} Qc7 {[%emt 0:00:56][%cal Rc6e5]} 11. Qe2 {[%emt 0:00:28]} b5 {[%emt 0:00:33]} 12. b3 {[%emt 0:06:57]} Be7 {[%emt 0:07:01]} 13. Nc2 {[%emt 0:04:10][%cal Rc3d4]} O-O {[%emt 0:02:58]} (13... dxc3 $1 $11 14. dxc3 O-O) 14. cxd4 $16 {[%emt 0:06:00]} cxd4 {[%emt 0:00:09]} 15. Ncxd4 {[%emt 0:05:39]} Bc5 {[%emt 0:06:48]} 16. Nxc6 {[%emt 0:02:44]} Bxc6 {[%emt 0:00:07]} 17. Be4 {[%emt 0:00:22]} Rfd8 {[%emt 0:00:55]} 18. Bb2 {[%emt 0:00:47]} Rac8 {[%emt 0:03:32]} 19. Rec1 {[%emt 0:09:51]} Bxe4 {[%emt 0:01:22]} 20. Qxe4 {[%emt 0:00:17] aiming for d4.} Qe7 {[%emt 0:00:10]} 21. Kg2 {[%emt 0:06:10]} Qd7 {[%emt 0:04:15]} 22. d4 {[%emt 0:01:28]} Bb6 {[%emt 0:01:02]} 23. Rxc8 {[%emt 0:00:40]} Rxc8 {[%emt 0:00:05]} 24. Rc1 {[%emt 0:00:05]} Ne7 {[%emt 0:00:36]} 25. Rxc8+ {[%emt 0:12:36]} Qxc8 {[%emt 0:04:17]} 26. Ng5 {[%emt 0:04:36]} Nf5 {[%emt 0:00:49]} 27. g4 {[%emt 0:01:57] White is more active.} Qd8 {[%emt 0:00:56]} 28. Qf4 {[%emt 0:07:24]} (28. Kf1 $16) 28... h6 $1 $11 {[%emt 0:05:42]} 29. Nf3 {[%emt 0:00:56]} (29. gxf5 {is more complex.} hxg5 30. Qg4 exf5 31. Qxf5 Bxd4 32. e6) 29... Ne7 {[%emt 0:02:40]} 30. Qe4 {[%emt 0:00:10]} Qd5 {[%emt 0:06:58]} (30... Qc8 $11) 31. Qxd5 $16 {[%emt 0:00:34]} Nxd5 {[%emt 0:00:04][%mdl 4096] Endgame. KBN-KBN} 32. Kf1 {[%emt 0:03:30]} Kh7 {[%emt 0:01:35]} 33. Bc1 {[%emt 0:02:42]} Kg6 {[%emt 0:01:19]} 34. Bd2 {[%emt 0:00:19]} h5 {[%emt 0:00:09]} 35. h3 {[%emt 0:00:12]} hxg4 {[%emt 0:00:06]} 36. hxg4 {[%emt 0:00:05]} f6 {[%emt 0:00:45]} 37. Ke2 {[%emt 0:02:17]} Bd8 {[%emt 0:00:34]} 38. exf6 {[%emt 0:00:50]} gxf6 {[%emt 0:00:05]} 39. Kd3 {[%emt 0:00:52]} Kf7 {[%emt 0:03:06]} 40. Ke4 {[%emt 0:00:00]} Bc7 {[%emt 0:00:00]} 41. Nh4 {[%emt 0:04:34][%cal Oh4f5]} Bd8 {[%emt 0:00:23]} (41... Bd6 $16) 42. Ng2 {[%emt 0:00:26]} (42. Nf5 $1 $18 {is the precise move to win.}) 42... Bc7 {[%emt 0:00:06]} (42... f5+ $16 43. gxf5 Nf6+ 44. Kf3 exf5) 43. Ne3 $1 $18 {[%emt 0:02:42]} Nf4 {[%emt 0:00:44]} 44. a4 {[%emt 0:14:45]} Nh3 {[%emt 0:01:32]} (44... bxa4 $142 45. bxa4 Nh3) 45. axb5 {[%emt 0:00:48]} axb5 {[%emt 0:00:43]} 46. Nd1 {[%emt 0:00:04]} Kg6 {[%emt 0:00:54]} 47. f4 {[%emt 0:01:46]} (47. d5 $18 exd5+ 48. Kxd5) 47... f5+ $14 {[%emt 0:01:21]} 48. Kf3 {[%emt 0:06:32]} Ng1+ {[%emt 0:00:53]} 49. Kf2 {[%emt 0:00:27]} Nh3+ {[%emt 0:00:10]} 50. Kg3 {[%emt 0:00:25]} Ng5 {[%emt 0:00:05]} 51. Nf2 {[%emt 0:00:15]} Nh7 {[%emt 0:01:06]} 52. Kf3 {[%emt 0:02:11]} Nf6 {[%emt 0:06:39]} 53. g5 {[%emt 0:00:57]} Nd5 {[%emt 0:00:07]} 54. Nd3 {[%emt 0:00:06]} Kf7 {[%emt 0:00:33]} 55. Kg3 {[%emt 0:06:09]} Bb6 {[%emt 0:00:10]} 56. Ne5+ {[%emt 0:00:15]} Ke7 {[%emt 0:00:41]} (56... Ke8 $142) 57. Kh4 $1 $16 {[%emt 0:00:34]} Ke8 $2 {[%emt 0:01:20]} (57... Kf8 $16) 58. Nf3 $2 {[%emt 0:03:55]} (58. Kh5 $18 {and the rest is easy.}) 58... Kf7 {[%emt 0:00:46]} 59. Ne5+ {[%emt 0:00:31]} (59. Kg3 $16) 59... Kg7 {[%emt 0:00:25]} (59... Ke8 $1 $11) 60. Nc6 $1 {[%emt 0:00:17]} Kg6 {[%emt 0:01:15]} 61. Kg3 {[%emt 0:00:41]} Kf7 {[%emt 0:00:06]} 62. Ba5 {[%emt 0:00:59]} Bxa5 {[%emt 0:01:43]} 63. Nxa5 {[%emt 0:00:01] KN-KN} Nb4 {[%emt 0:03:23]} 64. Kf3 {[%emt 0:00:40]} (64. Nb7 $16) 64... Ke7 {[%emt 0:00:31]} (64... Kg6 $11 {keeps the balance.}) 65. Kf2 $1 {[%emt 0:01:14]} Nd3+ {[%emt 0:02:35]} 66. Kg3 {[%emt 0:00:26]} Nb4 {[%emt 0:00:27] Repels Nc6+} 67. Kh4 {[%emt 0:00:32]} (67. Nb7 $16) 67... Nd5 $11 {[%emt 0:00:35]} 68. Kg3 {[%emt 0:00:08]} (68. Nc6+ $11 Kf7 (68... Kd6 69. Na7 $16) 69. Kg3) 68... Nb4 $1 $16 {[%emt 0:00:05]} 69. Kh4 {[%emt 0:00:14]} (69. Nb7 $16) 69... Nd5 $11 {[%emt 0:00:05]} 70. Kh5 {[%emt 0:02:29] And now Kh6 would win.} Nxf4+ {[%emt 0:00:06]} 71. Kh6 {[%emt 0:00:01]} Kd6 {[%emt 0:00:15] Prevents Nc6.} 72. Nb7+ {[%emt 0:01:08]} Kd5 {[%emt 0:00:04]} 73. Kg7 {[%emt 0:00:51]} (73. g6 $2 Nxg6 74. Kxg6 f4 $19) (73. Nc5 $11 Kxd4 74. b4) 73... Kxd4 {[%emt 0:00:53]} ({Black should play} 73... Ng2 $1 $17 {[%cal Rg2h4]} 74. Kf6 Nh4) 74. Kf6 $2 {[%emt 0:00:55][%mdl 8192]} (74. Nd6 $11) 74... Kd5 $19 {[%emt 0:00:22] Threatens to win with ...Nh5+.} 75. b4 {[%emt 0:00:24]} Nh3 $2 {[%emt 0:00:37]} ({Black should try} 75... Nh5+ $19 76. Kg6 Ng3) 76. Nc5 {[%emt 0:00:31]} (76. g6 $5 Nf4 $8 77. Nc5 $11 (77. g7 $2 Nh5+ 78. Ke7 Nxg7 $19)) 76... Nf4 {[%emt 0:01:12]} 77. Nb3 $2 {[%emt 0:00:55]} (77. Nb7 $11) 77... Nh5+ {[%emt 0:04:53]} 78. Kg6 {[%emt 0:00:12] [#]} Ng3 $1 {[%emt 0:00:46] White must now prevent ...f4.} 79. Kh6 {[%emt 0:00:39]} f4 {[%emt 0:00:06] ...f3 would now be deadly.} 80. Nd2 {[%emt 0:00:42] [#]} e5 {[%emt 0:00:53]} ({Better is} 80... Ke5 $1 $17 {[%cal Re5f5] ...Kf5 is the strong threat.} 81. Kh7 Kf5) 81. g6 $11 {[%emt 0:00:04] The position is equal.} Ke6 {[%emt 0:04:19]} 82. Kg5 {[%emt 0:00:01]} Nf5 {[%emt 0:00:12]} 83. Ne4 {[%emt 0:00:16] Threatening mate with Nc5+.} Ne7 {[%emt 0:01:37]} 84. Nd2 {[%emt 0:01:36]} Nf5 {[%emt 0:02:37]} 85. Ne4 {[%emt 0:00:05] White threatens Nc5+ and mate.} Ng7 {[%emt 0:00:07]} 86. Nd2 {[%emt 0:00:50]} Ne8 {[%emt 0:00:08]} 87. Ne4 {[%emt 0:00:11]} Ng7 {[%emt 0:00:32]} 88. Nd2 {[%emt 0:00:05] Both players deserved the win here.   Weighted Error Value: White=0.22 (precise) /Black=0.21 (precise) .  Loses game:     	White=2     	Black=1      Missed win:     	White=1     	---        Mistake:       	White=9     	Black=10     Inaccurate:     	White=3     	Black=5      OK:         	White=33    	Black=25     Best:        	White=8     	Black=7      Strong:       	White=3     	Black=3} 1/2-1/2

[Event "3rd Sunway Formentera-A 2024"]
[Site "Formentera"]
[Date "2024.04.10"]
[Round "2.5"]
[White "Tokhirjonova, Gulrukhbegim"]
[Black "Raja Rithvik R"]
[Result "1/2-1/2"]
[ECO "E04"]
[WhiteElo "2357"]
[BlackElo "2532"]
[Annotator "TA"]
[PlyCount "70"]
[EventDate "2024.04.03"]
[EventType "swiss"]
[EventCountry "ESP"]
[SourceTitle "playchess.com"]
[Source "ChessBase"]
[SourceQuality "1"]
[TimeControl "40/5400+30:1800+30"]

{[%evp 23,70,18,18,10,16,19,12,8,18,2,14,0,7,-2,25,0,20,15,22,11,17,17,8,7,15,-31,-25,-39,-42,-43,-48,-37,-7,-3,18,25,18,21,14,14,28,23,18,0,13,13,14,14,14]} 1. Nf3 {[%emt 0:00:21]} d5 {[%emt 0:00:09]} 2. g3 {[%emt 0:00:25]} c5 {[%emt 0:00:31]} 3. Bg2 {[%emt 0:00:27]} Nc6 {[%emt 0:00:21]} 4. d4 {[%emt 0:00:47]} Nf6 {[%emt 0:00:16]} 5. O-O {[%emt 0:01:04]} e6 {[%emt 0:00:06]} 6. c4 {[%emt 0:01:14]} dxc4 {[%emt 0:00:06]} 7. dxc5 {[%emt 0:01:19]} Qxd1 {[%emt 0:00:07]} 8. Rxd1 {[%emt 0:00:07]} Bxc5 {[%emt 0:00:03]} 9. Nbd2 {[%emt 0:00:13]} c3 {[%emt 0:00:05]} 10. bxc3 {[%emt 0:00:07]} O-O {[%emt 0:00:06]} 11. Nb3 {[%emt 0:00:36]} Be7 {[%emt 0:00:04]} 12. Nfd4 {[%emt 0:01:40]} Bd7 {[%emt 0:00:13]} 13. Nxc6 {[%emt 0:01:14]} Bxc6 {[%emt 0:00:20]} 14. Bxc6 {[%emt 0:00:09]} bxc6 {[%emt 0:00:04]} 15. c4 {[%emt 0:00:20]} a5 {[%emt 0:06:30]} 16. Be3 {[%emt 0:01:39]} a4 {[%emt 0:02:51]} 17. Nd4 {[%emt 0:03:12]} Rfc8 {[%emt 0:02:06]} 18. f3 {[%emt 0:02:25]} Ne8 {[%emt 0:05:10]} 19. Nc2 {[%emt 0:14:27]} Kf8 {[%emt 0:09:22]} 20. Ne1 {[%emt 0:16:12]} Nd6 {[%emt 0:15:34]} 21. Rac1 {[%emt 0:03:39]} a3 {[%emt 0:05:00]} 22. Nd3 {[%emt 0:04:13]} Ra4 {[%emt 0:11:52][%cal Ba8a4,Ba4c4,Bc4c2,Bc2a2][%mdl 32]} 23. Bc5 {[%emt 0:10:32] Black should prevent Ne5.} Ke8 {[%emt 0:02:15]} (23... Nxc4 $2 {too greedy.} 24. Bxe7+ Kxe7 25. Nc5 $18) 24. Ne5 {[%emt 0:16:59] [#]} (24. Kf2 $11 {is superior.}) 24... Nxc4 $1 $15 {[%emt 0:09:32]} 25. Rxc4 {[%emt 0:00:10]} (25. Nxc4 Bxc5+) 25... Rxc4 {[%emt 0:00:04]} 26. Bxe7 {[%emt 0:00:07]} Rc2 {[%emt 0:00:03]} 27. Bxa3 {[%emt 0:00:25]} Ra8 {[%emt 0:00:45]} 28. Bd6 {[%emt 0:06:06]} Rd8 {[%emt 0:07:42][%cal Of7f6]} 29. Kf1 {[%emt 0:05:31]} f6 $1 {[%emt 0:04:12]} 30. Ng4 {[%emt 0:00:06]} Rxa2 {[%emt 0:00:24]} 31. Nf2 {[%emt 0:01:21]} Rc2 {[%emt 0:01:23]} 32. Ke1 {[%emt 0:00:15]} Ra8 {[%emt 0:05:04]} 33. Ne4 {[%emt 0:03:01] The position is equal.} Raa2 {[%emt 0:00:21]} 34. Rd2 {[%emt 0:00:33]} ({Don't play} 34. Nd2 c5 35. Bf4 c4 $17) 34... Rc1+ {[%emt 0:01:20]} 35. Kf2 {[%emt 0:02:46]} Rxd2 {[%emt 0:01:43] Weighted Error Value: White=0.07 (flawless) /Black=0.08 (flawless) .  Mistake:       	White=1     	---        Inaccurate:     	---       	Black=2      OK:         	White=11    	Black=8      Strong:       	---       	Black=1} 1/2-1/2

[Event "3rd Sunway Formentera-A 2024"]
[Site "Formentera"]
[Date "2024.04.10"]
[Round "2.6"]
[White "Baklan, Vladimir"]
[Black "Doluhanova, Evgeniya"]
[Result "1-0"]
[ECO "C48"]
[WhiteElo "2531"]
[BlackElo "2273"]
[Annotator "TA"]
[PlyCount "65"]
[EventDate "2024.04.03"]
[EventType "swiss"]
[EventCountry "ESP"]
[SourceTitle "playchess.com"]
[Source "ChessBase"]
[SourceQuality "1"]
[TimeControl "40/5400+30:1800+30"]

{[%evp 10,65,27,0,10,-2,13,-8,-5,-5,-6,-17,-20,-20,0,-8,136,127,143,107,115,73,93,93,124,87,147,131,161,159,148,150,150,136,171,133,208,214,229,221,229,231,193,203,352,329,475,418,418,427,510,495,504,487,656,401,898,898]} 1. e4 {[%emt 0:00:03]} e5 {[%emt 0:00:03]} 2. Nf3 {[%emt 0:00:05]} Nc6 {[%emt 0:00:02]} 3. Bb5 {[%emt 0:00:13]} Nf6 {[%emt 0:00:04]} 4. d3 {[%emt 0:00:06]} Bc5 {[%emt 0:00:08]} 5. Bxc6 {[%emt 0:00:06]} dxc6 {[%emt 0:00:03]} 6. Nc3 {[%emt 0:00:05]} (6. Nxe5 $2 Qd4 7. Be3 Qxe5 $19) 6... Bd6 {[%emt 0:01:55]} 7. Ne2 {[%emt 0:00:34]} h6 {[%emt 0:03:15][%cal Bh7h6,Bh6h5,Bh5h4][%mdl 32]} 8. Ng3 {[%emt 0:01:08]} Be6 {[%emt 0:03:14] The position is equal.} 9. O-O {[%emt 0:00:42]} Qe7 {[%emt 0:01:53]} 10. b3 {[%emt 0:13:33]} O-O-O {[%emt 0:01:11]} 11. Bb2 {[%emt 0:00:15]} h5 {[%emt 0:02:20]} 12. Re1 {[%emt 0:04:01]} (12. Bxe5 Bxe5 13. Nxe5 h4 $17) (12. Nxe5 h4 13. Ne2 Nxe4 $15) 12... Ng4 {[%emt 0:10:51]} (12... Nd7 $11) 13. h3 $1 $16 {[%emt 0:09:21]} Qf6 {[%emt 0:03:14]} 14. Qd2 {[%emt 0:06:41][%cal Od3d4]} h4 {[%emt 0:07:48]} 15. Nf1 {[%emt 0:15:11]} Nh6 {[%emt 0:03:25][%cal Oe6h3]} 16. Qe3 {[%emt 0:05:01]} c5 {[%emt 0:07:56][%cal Bc6c5,Bc5b4][%mdl 32]} 17. N1d2 {[%emt 0:02:48][%cal Ob3b4]} Ng8 {[%emt 0:07:46] [#]} ({Black should play} 17... Kb8) 18. b4 $1 {[%emt 0:00:29][%mdl 512]} cxb4 {[%emt 0:02:30]} (18... b6 19. bxc5) 19. Qxa7 {[%emt 0:14:06]} Ne7 {[%emt 0:14:48][%cal Bg8e7,Be7c6,Bc6e5,Be5f3][%mdl 32]} 20. Qa8+ {[%emt 0:01:43]} Kd7 {[%emt 0:00:06]} 21. Qxb7 {[%emt 0:00:05]} Nc6 {[%emt 0:00:37] Threatens to win with ...Rb8.} 22. d4 $1 {[%emt 0:00:31]} Rb8 {[%emt 0:03:08] [#]} (22... Qg6 $16 23. Kh1 (23. Nxe5+ Bxe5 24. Nf3 Bd6 $17) (23. dxe5 $2 Bxh3 24. g3 Rb8 $19) 23... Rb8) 23. Qa6 $1 $18 {[%emt 0:00:14] aiming for d5.} exd4 {[%emt 0:06:02] [#]} 24. e5 $1 {[%emt 0:06:16][%mdl 512]} Nxe5 {[%emt 0:01:00]} 25. Bxd4 {[%emt 0:06:55]} (25. Nxd4 Bd5 26. Qa5 c5 $11) 25... Nxf3+ {[%emt 0:06:36]} 26. Nxf3 {[%emt 0:00:04][%cal Bd2f3,Bf3e5,Be5c6][%mdl 32]} Qf4 {[%emt 0:00:53] [#]} (26... Qg6 $142 27. Ne5+ Bxe5 28. Rxe5 (28. Bxe5 Bd5 $16) 28... Rh5) 27. Rad1 $1 {[%emt 0:02:50][%cal Od4e5] Be5! is the strong threat.} (27. Bxg7 $2 {too greedy.} Rhg8 28. Rad1 (28. Ne5+ $2 Bxe5 29. Rxe5 Rxg7 $19) 28... Rxg7 $19) 27... Ke7 {[%emt 0:09:42]} (27... Ra8 $142 28. Qb5+ Kc8) 28. Be5 {[%emt 0:00:48]} ({Less strong is} 28. Bxg7 Rbg8 $18) 28... Bxe5 {[%emt 0:00:29]} 29. Nxe5 {[%emt 0:00:21]} Rb6 {[%emt 0:00:36]} 30. Qa5 {[%emt 0:00:52]} Rc8 {[%emt 0:03:19]} 31. Qc5+ {[%emt 0:02:10]} Ke8 {[%emt 0:00:20]} 32. Nc6 {[%emt 0:00:32]} Qf6 {[%emt 0:00:22] Against Qe7+} (32... Rxc6 $142 33. Qxc6+ Kf8) 33. Rd3 {[%emt 0:00:27] Weighted Error Value: White=0.26 (precise) /Black=0.50.  Mistake:       	---       	Black=6      Inaccurate:     	White=2     	Black=2      OK:         	White=7     	Black=10     Best:        	White=2     	Black=1      Strong:       	White=4     	---        Brilliant:      	White=1     	---} 1-0

[Event "3rd Sunway Formentera-A 2024"]
[Site "Formentera"]
[Date "2024.04.10"]
[Round "2.7"]
[White "Schulman, Julia"]
[Black "Fernandez Guillen, Ernesto J."]
[Result "0-1"]
[ECO "B28"]
[WhiteElo "1732"]
[BlackElo "2474"]
[Annotator "TA"]
[PlyCount "56"]
[EventDate "2024.04.03"]
[EventType "swiss"]
[EventCountry "ESP"]
[SourceTitle "playchess.com"]
[Source "ChessBase"]
[SourceQuality "1"]
[TimeControl "40/5400+30:1800+30"]

{[%evp 9,56,37,61,56,52,58,68,60,55,22,7,2,0,0,14,11,14,-10,0,-40,-34,-29,-46,-58,-68,-185,-181,-219,-225,-274,-239,-249,-210,-203,-181,-434,-453,-572,-525,-485,-499,-701,-678,-728,-730,-1332,-1309,-5702,-4470]} 1. e4 {[%emt 0:00:02]} c5 {[%emt 0:01:51]} 2. Nf3 {[%emt 0:00:13]} a6 {[%emt 0:00:25]} 3. c3 {[%emt 0:00:32]} g6 {[%emt 0:02:49]} 4. d4 {[%emt 0:02:45]} cxd4 {[%emt 0:00:24]} 5. cxd4 {[%emt 0:03:55]} Bg7 {[%emt 0:05:40]} 6. Nc3 {[%emt 0:03:10]} d6 {[%emt 0:03:07]} 7. Be3 {[%emt 0:06:29]} Nf6 {[%emt 0:01:37]} 8. h3 {[%emt 0:03:35] White is slightly better.} O-O {[%emt 0:00:32]} 9. Be2 {[%emt 0:00:39]} b5 {[%emt 0:02:39]} 10. a3 {[%emt 0:06:34]} Bb7 {[%emt 0:01:01]} 11. Bd3 {[%emt 0:01:56]} Nbd7 {[%emt 0:00:55][%cal Bb8d7,Bd7b6,Bb6c4,Bc4b2,Bb2d3][%mdl 32]} 12. O-O {[%emt 0:01:31]} Rc8 {[%emt 0:03:57]} 13. Qd2 {[%emt 0:07:24]} Nb6 {[%emt 0:02:41]} 14. Bh6 {[%emt 0:05:33]} d5 {[%emt 0:03:49]} 15. Bxg7 {[%emt 0:05:15]} Kxg7 {[%emt 0:00:33]} 16. e5 {[%emt 0:02:33]} Ne4 {[%emt 0:00:16]} 17. Bxe4 {[%emt 0:01:24]} ({White should try} 17. Qe1 $15) 17... dxe4 $19 {[%emt 0:00:12]} 18. Nh2 {[%emt 0:13:13]} Nc4 {[%emt 0:02:04]} 19. Qf4 {[%emt 0:03:08]} Nxb2 {[%emt 0:03:29]} ({Don't play} 19... Qxd4 20. Nf3 Qb6 (20... exf3 $2 {loses.} 21. Qxd4 fxg2 22. Rfd1 $18) 21. Nxe4 $19) 20. Ne2 {[%emt 0:03:36]} Nd3 {[%emt 0:10:34] White is weak on the light squares} 21. Qe3 {[%emt 0:01:30]} f5 {[%emt 0:01:22] Prevents Ng4. Threatens to win with ...f4.} 22. f4 $2 {[%emt 0:02:49]} (22. exf6+ exf6 23. Nf4 Nxf4 24. Qxf4) 22... Rc2 {[%emt 0:09:13] Black is clearly winning.} 23. Nc1 {[%emt 0:05:09]} Nb2 {[%emt 0:02:49] [#] ...Nc4 would now be deadly.} 24. Nb3 {[%emt 0:03:45]} Qd5 {[%emt 0:00:19] ...Rfc8 is the strong threat.} 25. Rfc1 {[%emt 0:05:53]} (25. Nc5 $142 Rc8 26. Kh1) 25... Rfc8 {[%emt 0:00:28]} 26. Rxc2 {[%emt 0:01:29]} Rxc2 {[%emt 0:00:09]} 27. Nf1 {[%emt 0:01:28]} Nc4 {[%emt 0:00:15]} 28. Qg3 {[%emt 0:00:41] [#]} e3 $1 {[%emt 0:00:28][%mdl 512] Weighted Error Value: White=0.89/Black=0.08 (flawless) .  Mistake:       	White=3     	---        Inaccurate:     	White=2     	---        OK:         	White=4     	Black=12     Best:        	---       	Black=2} 0-1

[Event "3rd Sunway Formentera-A 2024"]
[Site "Formentera"]
[Date "2024.04.10"]
[Round "2.8"]
[White "Ivanchuk, Vasyl"]
[Black "Joel Paul Ganta"]
[Result "1-0"]
[ECO "C45"]
[WhiteElo "2611"]
[BlackElo "1969"]
[Annotator "TA"]
[PlyCount "85"]
[EventDate "2024.04.03"]
[EventType "swiss"]
[EventCountry "ESP"]
[SourceTitle "playchess.com"]
[Source "ChessBase"]
[SourceQuality "1"]
[TimeControl "40/5400+30:1800+30"]

{[%evp 17,85,-12,25,32,50,55,74,51,71,27,48,55,62,45,109,70,75,64,43,52,44,51,53,57,49,51,48,39,52,50,72,70,69,56,106,106,110,125,146,131,162,155,183,203,183,172,273,291,411,415,471,463,493,459,654,536,828,680,980,1040,1040,979,2039,1569,2047,1877,6283,6231,5635,5214]} 1. e4 {[%emt 0:00:03]} e5 {[%emt 0:00:03]} 2. Nf3 {[%emt 0:00:24]} Nc6 {[%emt 0:00:03]} 3. d4 {[%emt 0:00:08]} exd4 {[%emt 0:00:07]} 4. Nxd4 {[%emt 0:00:02]} Nf6 {[%emt 0:00:11]} 5. Nxc6 {[%emt 0:00:13]} bxc6 {[%emt 0:00:05]} 6. e5 {[%emt 0:00:04]} Qe7 {[%emt 0:00:05]} 7. Qe2 {[%emt 0:00:05]} Nd5 {[%emt 0:00:09]} 8. c4 {[%emt 0:00:14]} Nb6 {[%emt 0:01:30]} 9. Nd2 {[%emt 0:00:26]} Ba6 {[%emt 0:01:23]} 10. b3 {[%emt 0:00:31]} Qe6 {[%emt 0:03:35]} 11. Bb2 {[%emt 0:01:04]} Bb4 {[%emt 0:02:22]} 12. a3 {[%emt 0:04:50] White is better.} Be7 {[%emt 0:06:48]} 13. g3 {[%emt 0:05:04]} Rb8 {[%emt 0:01:11][%cal Ob6a4]} 14. O-O-O {[%emt 0:24:50]} O-O {[%emt 0:06:06]} 15. Qh5 {[%emt 0:00:12]} c5 {[%emt 0:25:17]} (15... g6 $14 16. Qh6 f5) 16. Bd3 {[%emt 0:17:08][%csl Gd3][%cal Rh5h7]} g6 {[%emt 0:04:03]} 17. Qe2 {[%emt 0:00:09]} d5 {[%emt 0:10:11]} 18. exd6 {[%emt 0:06:21]} Qxe2 {[%emt 0:00:59]} 19. Bxe2 {[%emt 0:00:01]} cxd6 {[%emt 0:00:05]} 20. Rhe1 {[%emt 0:00:07]} Bb7 {[%emt 0:11:00] Against Ne4} 21. Bf3 {[%emt 0:08:45]} Bxf3 {[%emt 0:01:07]} 22. Nxf3 {[%emt 0:00:01][%cal Bd2f3,Bf3g5,Bg5e4][%mdl 32]} Rfe8 {[%emt 0:00:31]} 23. Kc2 {[%emt 0:01:53]} Bf8 {[%emt 0:05:33]} 24. Ng5 {[%emt 0:05:53]} Rxe1 {[%emt 0:01:10]} 25. Rxe1 {[%emt 0:00:04]} d5 {[%emt 0:00:02] Black is on the road to losing.} (25... f5 $14) 26. cxd5 $16 {[%emt 0:00:20] White has more active pieces.} Nxd5 {[%emt 0:02:09][%cal Oc5c4] [#]} 27. Rd1 $1 {[%emt 0:06:23]} Rd8 {[%emt 0:06:39] [#]} 28. Bf6 $1 {[%emt 0:04:51]} Rd7 {[%emt 0:00:48]} 29. Ne4 {[%emt 0:00:06]} Nb6 {[%emt 0:05:31]} 30. Rxd7 {[%emt 0:02:53]} Nxd7 $18 {[%emt 0:00:03][%mdl 4096] Endgame. KBN-KBN} 31. Kc3 {[%emt 0:00:40]} Nb6 {[%emt 0:02:43]} (31... Bh6 $142 32. Kc4 Bf8) 32. a4 {[%emt 0:00:24][%cal Ba3a4,Ba4a5][%mdl 32]} h6 {[%emt 0:01:48]} (32... Bh6 $142 33. Be5 (33. Nxc5 Nd5+ 34. Kc4 Nxf6 $19) 33... f5) 33. a5 {[%emt 0:09:07]} Nd7 {[%emt 0:00:57]} 34. Kc4 {[%emt 0:00:03] White is clearly winning.} g5 {[%emt 0:00:27]} 35. Kb5 {[%emt 0:01:24] aiming for Kc6.} Nb8 {[%emt 0:00:47]} (35... Kh7 $142 36. Ka6 Kg6) 36. Bc3 {[%emt 0:01:19]} f5 {[%emt 0:01:54]} 37. Nxc5 {[%emt 0:00:11] And now Be5 would win.} Kf7 {[%emt 0:00:01]} 38. Be5 {[%emt 0:00:26] Prevents Bd6} a6+ {[%emt 0:01:22]} 39. Nxa6 {[%emt 0:01:02]} Nxa6 {[%emt 0:00:01]} 40. Kxa6 {[%emt 0:00:00] Strongly threatening Kb7.} Bc5 {[%emt 0:00:00]} 41. f3 {[%emt 0:00:51]} g4 {[%emt 0:05:27]} 42. fxg4 {[%emt 0:00:12]} fxg4 {[%emt 0:00:02]} 43. Kb7 {[%emt 0:00:08] Weighted Error Value: White=0.13 (very precise) /Black=0.39.  Mistake:       	---       	Black=5      Inaccurate:     	White=2     	Black=2      OK:         	White=13    	Black=9      Best:        	White=3     	Black=1      Strong:       	White=2     	---} 1-0